bitfinex-derivatives/quotes_BTCF0:USTF0_20250501
["timestamp","ask_amount","ask_price","bid_price","bid_amount"]
[1746060425511,0.0652,94386.0,94385.0,1.19149963]
[1746060428127,0.0652,94386.0,94385.0,1.43853651]
[1746060430720,0.0326,94386.0,94385.0,1.43853651]
[1746060431216,0.0326,94386.0,94385.0,1.29958731]
[1746060431625,0.03279219,94386.0,94385.0,1.29958731]
[1746060432230,0.03279219,94386.0,94385.0,2.79958731]
[1746060435830,0.03279219,94386.0,94385.0,2.5303874]
[1746060438028,0.03279219,94386.0,94385.0,2.93878679]
[1746060440729,0.00119219,94386.0,94385.0,2.93878679]
[1746060442251,0.0326,94389.0,94385.0,2.77987069]
[1746060442432,0.00791183,94390.0,94389.0,0.2118785]
[1746060442728,0.00752115,94393.0,94390.0,0.2118762]
[1746060442931,0.00806378,94397.0,94394.0,0.2118672]
[1746060443126,0.00806378,94397.0,94394.0,0.9346672]
[1746060443533,0.00803589,94395.0,94394.0,0.9346672]
[1746060443724,0.00799589,94395.0,94394.0,0.9997672]
[1746060444332,0.00799589,94395.0,94394.0,1.16128801]
[1746060444528,0.00803589,94395.0,94394.0,1.16128801]
[1746060445332,0.01003589,94395.0,94394.0,1.16128801]
[1746060447132,0.01003589,94395.0,94394.0,1.17201663]
[1746060447433,0.00903589,94395.0,94394.0,1.17201663]
[1746060447636,0.00903589,94395.0,94394.0,1.01149582]
[1746060447834,0.00803589,94395.0,94394.0,1.01249582]
[1746060451632,0.00799589,94395.0,94394.0,1.01249582]
[1746060451827,0.00803589,94395.0,94394.0,1.01249582]
[1746060452237,0.00870213,94398.0,94397.0,0.2118605]
[1746060452440,0.00870213,94398.0,94397.0,0.4418605]
[1746060453138,0.00870213,94398.0,94397.0,0.6278605]
[1746060453341,0.00870213,94398.0,94397.0,0.6288605]
[1746060454627,0.00870213,94398.0,94397.0,0.5972605]
[1746060454833,0.10130213,94398.0,94397.0,0.5972605]
[1746060460848,0.07060213,94398.0,94397.0,0.5972605]
[1746060461039,0.07060213,94398.0,94397.0,0.84535806]
[1746060462349,0.03980213,94398.0,94397.0,0.84535806]
[1746060463047,0.00870213,94398.0,94397.0,0.84535806]
[1746060463538,0.00870213,94398.0,94397.0,0.6302605]
[1746060464445,0.04170213,94398.0,94397.0,0.6302605]
[1746060468142,0.00870213,94398.0,94397.0,0.6302605]
[1746060470347,0.00870213,94398.0,94397.0,0.79162581]
[1746060472748,0.04190213,94398.0,94397.0,0.6302605]
[1746060473541,0.07330213,94398.0,94397.0,0.6302605]
[1746060474349,0.04010213,94398.0,94397.0,0.6302605]
[1746060475341,0.00870213,94398.0,94397.0,0.6302605]
[1746060478958,0.00870213,94398.0,94397.0,0.84562345]
[1746060480041,0.1,94400.0,94397.0,0.63376295]
[1746060480249,0.1,94400.0,94399.0,0.211856]
[1746060480447,0.00172226,94404.0,94399.0,0.2829637]
[1746060480647,0.00164935,94404.0,94402.0,0.2118493]
[1746060480953,0.0079238,94403.0,94402.0,0.4418493]
[1746060481155,0.0079238,94403.0,94402.0,0.5638493]
[1746060482652,0.0089238,94403.0,94402.0,0.5638493]
[1746060483349,0.0099238,94403.0,94402.0,0.5638493]
[1746060486348,0.00294632,94406.0,94405.0,0.2118425]
[1746060486559,0.00294632,94406.0,94405.0,0.8626425]
[1746060487061,0.00298632,94406.0,94405.0,2.3626425]
[1746060487277,0.00298632,94406.0,94405.0,2.4846425]
[1746060487850,0.00398632,94406.0,94405.0,2.89058388]
[1746060488057,0.00498632,94406.0,94405.0,2.89058388]
[1746060490159,0.00498632,94406.0,94405.0,3.30638388]
[1746060491449,0.00832211,94409.0,94408.0,0.2118358]
[1746060491658,0.00832211,94409.0,94408.0,0.4518358]
[1746060492362,0.00832211,94409.0,94408.0,0.6386358]
[1746060492860,0.01032211,94409.0,94408.0,0.6386358]
[1746060494753,0.01132211,94409.0,94408.0,0.6386358]
[1746060496061,0.01132211,94409.0,94408.0,1.0544358]
[1746060500264,0.00932211,94409.0,94408.0,1.0544358]
[1746060500771,0.00832211,94409.0,94408.0,1.0544358]
[1746060504767,0.00155401,94415.0,94414.0,0.2118223]
[1746060504963,0.00155401,94415.0,94414.0,0.8026223]
[1746060505163,0.00155401,94415.0,94414.0,0.9246223]
[1746060505558,0.00155401,94415.0,94414.0,1.0168223]
[1746060506472,0.00255401,94415.0,94414.0,1.0168223]
[1746060507366,0.00355401,94415.0,94414.0,1.0168223]
[1746060508979,0.00355401,94415.0,94414.0,1.23158604]
[1746060510779,0.03655401,94415.0,94414.0,1.20158604]
[1746060510974,0.06965401,94415.0,94414.0,1.20158604]
[1746060511377,0.06965401,94415.0,94414.0,1.16978604]
[1746060514671,0.06965401,94415.0,94414.0,0.9550223]
[1746060529081,0.06965401,94415.0,94414.0,0.5942223]
[1746060532189,0.06965401,94415.0,94414.0,0.6269223]
[1746060536900,0.06965401,94415.0,94414.0,2.1269223]
[1746060538403,0.03665401,94415.0,94414.0,2.1269223]
[1746060543400,0.00355401,94415.0,94414.0,2.1269223]
[1746060553710,0.00355401,94415.0,94414.0,2.4877223]
[1746060555809,0.00354,94415.0,94414.0,2.4877223]
[1746060556613,0.0035,94415.0,94414.0,2.4877223]
[1746060556914,0.00354,94415.0,94414.0,2.4877223]
[1746060558014,0.00973807,94417.0,94416.0,0.2118179]
[1746060558211,0.00973807,94417.0,94416.0,0.9246179]
[1746060558711,0.00973807,94417.0,94416.0,2.4859179]
[1746060559505,0.01073807,94417.0,94416.0,2.4859179]
[1746060559908,0.01173807,94417.0,94416.0,2.4859179]
[1746060560316,0.01173807,94417.0,94416.0,0.9859179]
[1746060561419,0.01177807,94417.0,94416.0,0.9859179]
[1746060576218,0.01177807,94417.0,94416.0,2.4859179]
[1746060582420,0.01177807,94417.0,94416.0,2.87800881]
[1746060582626,0.00176367,94418.0,94417.0,0.2118156]
[1746060582819,0.00176367,94418.0,94417.0,0.4418156]
[1746060583035,0.00176367,94418.0,94417.0,0.5047156]
[1746060583231,0.00176367,94418.0,94417.0,0.6267156]
[1746060583931,0.00276367,94418.0,94417.0,0.6267156]
[1746060585330,0.00376367,94418.0,94417.0,0.6267156]
[1746060591640,0.00376367,94418.0,94417.0,2.1267156]
[1746060595023,0.06726367,94418.0,94417.0,2.39573354]
[1746060595233,0.27907707,94418.0,94417.0,0.65131794]
[1746060595542,0.06726367,94418.0,94417.0,0.86313354]
[1746060597840,0.06726367,94418.0,94417.0,0.5941156]
[1746060600926,0.06726367,94418.0,94417.0,0.80946199]
[1746060602734,0.27907707,94418.0,94417.0,0.56734639]
[1746060603536,0.27907707,94418.0,94417.0,0.77916199]
[1746060604534,0.27907707,94418.0,94417.0,0.81026199]
[1746060604845,0.27907707,94418.0,94417.0,0.5949156]
[1746060605027,0.63987707,94418.0,94417.0,0.5949156]
[1746060614048,0.2648081,94405.0,94401.0,0.16144779]
[1746060614241,0.2648081,94405.0,94404.0,0.2648057]
[1746060614440,0.2648081,94405.0,94404.0,0.4248057]
[1746060614441,0.2954081,94405.0,94404.0,0.4248057]
[1746060614744,0.2954081,94405.0,94404.0,0.4573057]
[1746060614951,0.3282081,94405.0,94404.0,0.16]
[1746060615134,0.3282081,94405.0,94404.0,0.282]
[1746060615333,0.3282081,94405.0,94404.0,0.285]
[1746060615548,0.3282081,94405.0,94404.0,0.3164]
[1746060617047,0.4341361,94405.0,94404.0,0.3164]
[1746060617241,0.4341361,94405.0,94404.0,0.1944]
[1746060617442,0.3282081,94405.0,94404.0,0.4062448]
[1746060618152,0.3282081,94405.0,94404.0,0.5282448]
[1746060620845,0.2954081,94405.0,94404.0,0.5282448]
[1746060621346,0.2648481,94405.0,94404.0,0.5282448]
[1746060623154,0.211887,94405.0,94404.0,0.5282448]
[1746060623356,4e-05,94405.0,94404.0,0.8890448]
[1746060623756,0.0529584,94409.0,94408.0,0.2647897]
[1746060624052,0.0529584,94409.0,94408.0,0.5347897]
[1746060624449,0.2118336,94409.0,94408.0,0.5998897]
[1746060624953,0.2118336,94409.0,94408.0,0.6008897]
[1746060625151,0.2118336,94409.0,94408.0,0.7228897]
[1746060625352,0.2118736,94409.0,94408.0,0.7228897]
[1746060625550,0.2118736,94409.0,94408.0,0.7238897]
[1746060632554,4e-05,94409.0,94408.0,1.0846897]
[1746060632854,0.0529546,94416.0,94415.0,0.2647701]
[1746060633056,0.2647725,94416.0,94415.0,0.6093701]
[1746060633255,0.2647725,94416.0,94415.0,0.7313701]
[1746060634054,0.2657725,94416.0,94415.0,0.7313701]
[1746060634845,0.2667725,94416.0,94415.0,0.7313701]
[1746060636847,0.2668125,94416.0,94415.0,0.7313701]
[1746060640255,0.2668125,94416.0,94415.0,0.74183428]
[1746060645654,0.2668125,94416.0,94415.0,0.7313701]
[1746060646156,0.2668125,94416.0,94415.0,0.74206992]
[1746060646357,0.2668125,94416.0,94415.0,0.7313701]
[1746060647561,0.3286125,94416.0,94415.0,0.7313701]
[1746060648558,0.2974125,94416.0,94415.0,0.7313701]
[1746060650165,0.2668125,94416.0,94415.0,0.7313701]
[1746060650566,0.2138579,94416.0,94415.0,0.7313701]
[1746060653059,0.00204,94416.0,94415.0,0.7313701]
[1746060658161,0.00204,94416.0,94415.0,1.0921701]
[1746060667682,0.002,94416.0,94415.0,1.0921701]
[1746060667981,0.00204,94416.0,94415.0,1.30751649]
[1746060671587,0.00204,94416.0,94415.0,1.0921701]
[1746060672183,0.01128158,94420.0,94417.0,0.0529533]
[1746060672381,0.01128158,94420.0,94419.0,0.2118111]
[1746060672580,0.01122757,94420.0,94419.0,0.4918111]
[1746060672780,0.01126757,94420.0,94419.0,0.5544111]
[1746060673081,0.01126757,94420.0,94419.0,0.6764111]
[1746060673492,0.01326757,94420.0,94419.0,0.6764111]
[1746060673989,0.01426757,94420.0,94419.0,0.6764111]
[1746060674692,0.01326757,94420.0,94419.0,0.6764111]
[1746060674908,0.01426757,94420.0,94419.0,0.6764111]
[1746060677682,0.01422757,94420.0,94419.0,0.6764111]
[1746060677883,0.01426757,94420.0,94419.0,0.6764111]
[1746060680091,0.01170848,94428.0,94422.0,0.0529505]
[1746060680293,0.01170848,94428.0,94427.0,0.5725932]
[1746060680591,0.04390848,94428.0,94427.0,0.8225932]
[1746060681180,0.04590848,94428.0,94427.0,1.0064932]
[1746060681691,0.04890848,94428.0,94427.0,1.0064932]
[1746060682992,0.04990848,94428.0,94427.0,1.0064932]
[1746060683788,0.26169938,94428.0,94427.0,1.0064932]
[1746060684494,0.04990848,94428.0,94427.0,1.0064932]
[1746060684792,0.26169938,94428.0,94427.0,1.0064932]
[1746060685583,0.26169938,94428.0,94427.0,1.16782893]
[1746060685790,0.26169938,94428.0,94427.0,1.13692893]
[1746060688896,0.26169938,94428.0,94427.0,0.9755932]
[1746060689095,0.26169938,94428.0,94427.0,0.8535932]
[1746060690501,0.29219938,94428.0,94427.0,0.8535932]
[1746060693103,0.29219938,94428.0,94427.0,0.9755932]
[1746060695199,0.29219938,94428.0,94427.0,0.8535932]
[1746060697202,0.29219938,94428.0,94427.0,0.9755932]
[1746060698403,0.29219938,94428.0,94427.0,0.403]
[1746060698799,0.29219938,94428.0,94427.0,0.6147932]
[1746060699301,0.29219938,94428.0,94427.0,0.4927932]
[1746060711504,0.29219938,94428.0,94427.0,0.5242932]
[1746060716318,0.25999938,94428.0,94427.0,0.5242932]
[1746060723517,0.29179938,94428.0,94427.0,0.5242932]
[1746060724321,0.29179938,94428.0,94427.0,0.4927932]
[1746060724710,0.22949938,94428.0,94427.0,0.4927932]
[1746060724911,0.01770848,94428.0,94427.0,0.5238932]
[1746060725118,0.22949938,94428.0,94427.0,0.6458932]
[1746060725315,0.22953938,94428.0,94427.0,0.6458932]
[1746060737841,0.01774848,94428.0,94427.0,0.6458932]
[1746060738039,0.22953938,94428.0,94427.0,0.6458932]
[1746060738340,0.01774848,94428.0,94427.0,0.6458932]
[1746060738738,0.01770848,94428.0,94427.0,0.6458932]
[1746060739040,0.22953938,94428.0,94427.0,0.6458932]
[1746060744445,0.01774848,94428.0,94427.0,0.6458932]
[1746060744646,0.22953938,94428.0,94427.0,0.6458932]
[1746060758059,0.22953938,94428.0,94427.0,0.6768932]
[1746060763762,0.01774848,94428.0,94427.0,0.6768932]
[1746060764264,0.01770848,94428.0,94427.0,0.6768932]
[1746060764670,0.01774848,94428.0,94427.0,0.83822893]
[1746060767268,0.01774848,94428.0,94427.0,0.6768932]
[1746060767455,0.01774848,94428.0,94427.0,1.0376932]
[1746060767963,0.01774848,94428.0,94427.0,0.6768932]
[1746060768159,0.01774848,94428.0,94427.0,1.0376932]
[1746060768561,0.01774848,94428.0,94427.0,0.6768932]
[1746060768761,0.01774848,94428.0,94427.0,1.0376932]
[1746060780074,4e-05,94428.0,94427.0,1.0376932]
[1746060780272,0.0091967,94433.0,94432.0,0.211782]
[1746060780471,0.0091967,94433.0,94432.0,0.451782]
[1746060780675,0.0091967,94433.0,94432.0,0.514282]
[1746060781272,0.0131967,94433.0,94432.0,0.636282]
[1746060782970,0.0151967,94433.0,94432.0,0.636282]
[1746060785186,0.0111967,94433.0,94432.0,0.636282]
[1746060785379,0.0091967,94433.0,94432.0,0.636282]
[1746060785581,0.0101967,94433.0,94432.0,0.636282]
[1746060788985,0.2219764,94433.0,94432.0,0.606082]
[1746060790178,0.2219764,94433.0,94432.0,0.484082]
[1746060790682,0.2219764,94433.0,94432.0,0.4839664]
[1746060792073,0.2219764,94433.0,94432.0,0.6059664]
[1746060793083,0.2219764,94433.0,94432.0,0.4839664]
[1746060795074,0.2859764,94433.0,94432.0,0.4839664]
[1746060802090,0.2859764,94433.0,94432.0,0.6059664]
[1746060802792,0.2859764,94433.0,94432.0,0.6372664]
[1746060803091,0.2859764,94433.0,94432.0,0.5152664]
[1746060808293,0.2859764,94433.0,94432.0,0.6372664]
[1746060820404,0.2529764,94433.0,94432.0,0.6372664]
[1746060823002,0.2529764,94433.0,94432.0,0.6059664]
[1746060823206,0.2845764,94433.0,94432.0,0.6059664]
[1746060825993,0.2845764,94433.0,94432.0,0.6365664]
[1746060828413,0.2845764,94433.0,94432.0,0.79816812]
[1746060830211,0.2529764,94433.0,94432.0,0.79816812]
[1746060830811,0.2529764,94433.0,94432.0,0.6365664]
[1746060831509,0.2836764,94433.0,94432.0,0.6365664]
[1746060832507,0.2836764,94433.0,94432.0,0.3941844]
[1746060832811,0.2836764,94433.0,94432.0,0.6059664]
[1746060833310,0.2836764,94433.0,94432.0,0.4839664]
[1746060834111,0.2836764,94433.0,94432.0,0.6059664]
[1746060835211,0.2836764,94433.0,94432.0,0.4839664]
[1746060836202,0.2836764,94433.0,94432.0,0.6059664]
[1746060842317,0.2836764,94433.0,94432.0,0.3941844]
[1746060843209,0.28362239,94433.0,94432.0,0.2721844]
[1746060843602,0.28362239,94433.0,94432.0,0.4839664]
[1746060844702,0.28362239,94433.0,94432.0,0.2721844]
[1746060845104,0.28362239,94433.0,94432.0,0.0323]
[1746060845918,0.28362239,94433.0,94432.0,0.0629]
[1746060846215,0.28362239,94433.0,94432.0,0.396682]
[1746060846709,0.28362239,94433.0,94432.0,0.1849]
[1746060848622,0.28362239,94433.0,94432.0,0.2178]
[1746060849222,0.28362239,94433.0,94432.0,0.0958]
[1746060849523,0.22192239,94433.0,94432.0,0.307582]
[1746060849821,0.22192239,94433.0,94432.0,0.427582]
[1746060850322,0.22196239,94433.0,94432.0,0.549582]
[1746060866023,0.22196239,94433.0,94432.0,0.439582]
[1746060869518,0.22196239,94433.0,94432.0,0.429582]
[1746060870018,0.22196239,94433.0,94432.0,0.549582]
[1746060871620,0.22192239,94433.0,94432.0,0.549582]
[1746060871821,0.22196239,94433.0,94432.0,0.549582]
[1746060883827,0.01018269,94433.0,94432.0,0.549582]
[1746060884225,0.22192239,94433.0,94432.0,0.549582]
[1746060884433,0.22196239,94433.0,94432.0,0.549582]
[1746060888637,0.22196239,94433.0,94432.0,0.242]
[1746060889137,0.22196239,94433.0,94432.0,0.12]
[1746060889334,0.28606239,94433.0,94432.0,0.12]
[1746060892735,0.2117842,94431.0,94430.0,0.0332]
[1746060893233,0.2117842,94431.0,94430.0,0.1552]
[1746060895641,0.2117842,94431.0,94430.0,0.1652]
[1746060899954,0.2117842,94431.0,94430.0,0.1552]
[1746060900255,0.2117842,94431.0,94430.0,0.1652]
[1746060905140,0.2117842,94431.0,94430.0,0.0432]
[1746060906251,0.2117842,94431.0,94430.0,0.1652]
[1746060908847,0.2117842,94431.0,94430.0,0.0361481]
[1746060909049,0.2117999,94424.0,94423.0,0.16165146]
[1746060909250,0.2117999,94424.0,94423.0,0.17165146]
[1746060909851,0.2734999,94424.0,94423.0,0.17165146]
[1746060910248,0.2734999,94424.0,94423.0,0.29365146]
[1746060910442,0.2734999,94424.0,94423.0,0.29465146]
[1746060911149,0.2734999,94424.0,94423.0,0.17265146]
[1746060911452,0.2734999,94424.0,94423.0,0.012]
[1746060912153,0.2734999,94424.0,94423.0,0.134]
[1746060912953,0.2734999,94424.0,94423.0,0.124]
[1746060914049,0.2734999,94424.0,94423.0,0.1569]
[1746060914250,0.2734999,94424.0,94423.0,0.1894]
[1746060916950,0.2734999,94424.0,94423.0,0.1569]
[1746060917145,0.3369399,94424.0,94423.0,0.002]
[1746060917348,0.3369399,94424.0,94423.0,1e-07]
[1746060919359,0.3608,94416.0,94390.0,0.17232348]
[1746060919559,0.2118852,94386.0,94376.0,0.53715453]
[1746060920646,0.28405195,94386.0,94384.0,0.26946789]
[1746060921649,0.28405195,94386.0,94385.0,0.00805948]
[1746060922553,0.28405195,94386.0,94385.0,0.01505948]
[1746060924462,0.28405195,94386.0,94385.0,0.04525948]
[1746060931156,0.21995195,94386.0,94385.0,0.04525948]
[1746060931361,0.21995195,94386.0,94385.0,0.07525948]
[1746060931753,0.21991195,94386.0,94385.0,0.07525948]
[1746060931963,0.21995195,94386.0,94385.0,0.07525948]
[1746060932157,0.21995195,94386.0,94385.0,1.69725948]
[1746060932357,0.21995195,94386.0,94385.0,1.90914688]
[1746060932566,0.21995195,94386.0,94385.0,1.70807806]
[1746060932959,0.21995195,94386.0,94385.0,1.91996546]
[1746060933156,0.21995195,94386.0,94385.0,1.90914688]
[1746060933757,0.21995195,94386.0,94385.0,1.93984688]
[1746060936268,0.21995195,94386.0,94385.0,1.93884688]
[1746060942660,0.21995195,94386.0,94385.0,2.17884688]
[1746060944155,0.21995195,94386.0,94385.0,1.96695948]
[1746060944961,0.58075195,94386.0,94385.0,1.96695948]
[1746060945158,0.58075195,94386.0,94385.0,2.17884688]
[1746060945964,0.21995195,94386.0,94385.0,2.17884688]
[1746060946164,0.21995195,94386.0,94385.0,2.13884688]
[1746060947171,0.21995195,94386.0,94385.0,1.92695948]
[1746060949966,0.21995195,94386.0,94385.0,1.69695948]
[1746060950171,0.21995195,94386.0,94385.0,1.96695948]
[1746060952064,0.25295195,94386.0,94385.0,1.96695948]
[1746060953474,0.25295195,94386.0,94385.0,1.69695948]
[1746060953771,0.25295195,94386.0,94385.0,1.93695948]
[1746060961681,0.25295195,94386.0,94385.0,1.92995948]
[1746060961980,0.25295195,94386.0,94385.0,1.92395948]
[1746060962667,0.28515195,94386.0,94385.0,1.92395948]
[1746060984194,0.28515195,94386.0,94385.0,1.89325948]
[1746060984392,0.28515195,94386.0,94385.0,0.39325948]
[1746060984583,0.2119076,94376.0,94375.0,0.4158]
[1746060984785,0.5727076,94376.0,94375.0,0.4958]
[1746060985687,0.6349076,94376.0,94375.0,0.4958]
[1746060986191,0.7569076,94376.0,94375.0,0.3866796]
[1746060986394,0.2119211,94370.0,94369.0,4e-05]
[1746060986688,0.5727211,94370.0,94369.0,0.03004]
[1746060987291,0.7577211,94370.0,94369.0,0.03004]
[1746060988287,0.6357211,94370.0,94369.0,0.03004]
[1746061009097,0.6032211,94370.0,94369.0,0.03004]
[1746061009301,0.5727211,94370.0,94369.0,0.2419634]
[1746061009801,0.5727611,94370.0,94369.0,0.3071634]
[1746061010302,0.5727611,94370.0,94369.0,0.4291634]
[1746061018196,0.5727611,94370.0,94369.0,0.21724]
[1746061022197,0.5727611,94370.0,94369.0,0.4291634]
[1746061023822,0.36084,94370.0,94369.0,0.4291634]
[1746061024217,0.3608,94370.0,94369.0,0.4291634]
[1746061024510,0.36084,94370.0,94369.0,0.4291634]
[1746061026114,0.5727611,94370.0,94369.0,0.4291634]
[1746061029820,0.36084,94370.0,94369.0,0.4291634]
[1746061031322,0.5727611,94370.0,94369.0,0.4291634]
[1746061033002,0.6030611,94370.0,94369.0,0.4291634]
[1746061034704,0.6338611,94370.0,94369.0,0.4291634]
[1746061039210,0.6338611,94370.0,94369.0,0.3971634]
[1746061044919,0.6338611,94370.0,94369.0,0.4298634]
[1746061046721,0.42194,94370.0,94369.0,0.4298634]
[1746061046917,0.06114,94370.0,94369.0,0.4298634]
[1746061048611,0.06114,94370.0,94369.0,0.59197078]
[1746061049721,0.06114,94370.0,94369.0,0.4298634]
[1746061050720,0.06114,94370.0,94369.0,0.4298634]
[1746061064332,0.06114,94370.0,94369.0,0.59179437]
[1746061070223,0.06114,94370.0,94369.0,0.4298634]
[1746061082342,0.0529681,94392.0,94383.0,0.2118919]
[1746061082639,0.0529681,94392.0,94385.0,0.2118874]
[1746061082841,0.2118858,94386.0,94385.0,0.4818874]
[1746061083235,0.2118858,94386.0,94385.0,0.6038874]
[1746061083444,0.2118858,94386.0,94385.0,0.6355874]
[1746061084643,0.0325,94387.0,94386.0,0.2118852]
[1746061084842,0.0325,94387.0,94386.0,0.4734852]
[1746061085046,0.0325,94387.0,94386.0,0.5954852]
[1746061085449,0.0325,94387.0,94386.0,0.60628185]
[1746061087362,0.04036828,94387.0,94386.0,0.60628185]
[1746061090764,0.0317,94389.0,94388.0,0.2118807]
[1746061090962,0.0317,94389.0,94388.0,0.4718807]
[1746061091157,0.0317,94389.0,94388.0,0.5938807]
[1746061091474,0.0317,94389.0,94388.0,0.6252807]
[1746061091857,0.03174,94389.0,94388.0,0.6252807]
[1746061092667,0.0860644,94399.0,94398.0,0.2118583]
[1746061092668,0.0331,94399.0,94398.0,0.2118583]
[1746061092966,0.10808072,94401.0,94400.0,0.2118538]
[1746061093165,0.10808072,94401.0,94400.0,0.8526538]
[1746061093362,0.13882072,94401.0,94400.0,0.8526538]
[1746061093564,0.13882072,94401.0,94400.0,0.9166538]
[1746061093767,0.14667915,94401.0,94400.0,0.9166538]
[1746061094162,0.14667915,94401.0,94400.0,1.0386538]
[1746061095162,0.03859843,94401.0,94400.0,1.0386538]
[1746061096366,0.00789843,94401.0,94400.0,1.0386538]
[1746061106671,0.07359843,94401.0,94400.0,1.0386538]
[1746061110579,0.28544993,94401.0,94400.0,1.0060538]
[1746061110780,0.28544993,94401.0,94400.0,0.9860538]
[1746061112078,0.07359843,94401.0,94400.0,0.9860538]
[1746061112277,0.07359843,94401.0,94400.0,0.8640538]
[1746061113067,0.07359843,94401.0,94400.0,0.9860538]
[1746061114287,0.07359843,94401.0,94400.0,0.7260538]
[1746061114476,0.07359843,94401.0,94400.0,0.9960538]
[1746061116988,0.07359843,94401.0,94400.0,1.0288538]
[1746061123488,0.2647836,94412.0,94411.0,0.2647813]
[1746061123682,0.2647836,94412.0,94411.0,0.5247813]
[1746061123879,0.2648236,94412.0,94411.0,0.5247813]
[1746061124186,0.2968236,94412.0,94411.0,0.65738912]
[1746061124580,0.2968236,94412.0,94411.0,0.6467813]
[1746061124786,0.2968236,94412.0,94411.0,0.699738]
[1746061125198,0.30474054,94412.0,94411.0,0.699738]
[1746061126789,0.33724054,94412.0,94411.0,0.699738]
[1746061130789,0.44532126,94412.0,94411.0,0.699738]
[1746061132190,0.44532126,94412.0,94411.0,0.382]
[1746061132591,0.91204126,94412.0,94411.0,0.382]
[1746061133189,1.03404126,94412.0,94411.0,0.26]
[1746061134784,0.92596054,94412.0,94411.0,0.26]
[1746061135186,0.80396054,94412.0,94411.0,0.26]
[1746061136792,0.80396054,94412.0,94411.0,0.29]
[1746061139892,0.80396054,94412.0,94411.0,0.5018291]
[1746061147089,0.69804054,94412.0,94411.0,0.5018291]
[1746061147699,0.63354054,94412.0,94411.0,0.5018291]
[1746061148000,0.00795694,94412.0,94411.0,0.5018291]
[1746061148200,0.0015,94415.0,94414.0,0.2118223]
[1746061148498,0.0015,94415.0,94414.0,0.4818223]
[1746061149291,0.0015,94415.0,94414.0,0.6038223]
[1746061150500,0.00929791,94415.0,94414.0,0.6038223]
[1746061150701,0.0015,94415.0,94414.0,0.6038223]
[1746061151300,0.0015,94415.0,94414.0,0.9646223]
[1746061154696,0.22117042,94415.0,94414.0,0.9646223]
[1746061154896,0.0015,94415.0,94414.0,0.9646223]
[1746061156006,0.2133201,94415.0,94414.0,0.9646223]
[1746061158095,0.2133201,94415.0,94414.0,0.9969223]
[1746061159003,0.22135868,94415.0,94414.0,0.9969223]
[1746061160291,0.0529473,94429.0,94420.0,0.052952]
[1746061160495,0.21185451,94424.0,94423.0,0.2118022]
[1746061160703,0.2118005,94424.0,94423.0,0.4618022]
[1746061160895,0.2118405,94424.0,94423.0,0.4618022]
[1746061161090,0.2118405,94424.0,94423.0,0.6476022]
[1746061162004,0.21971858,94424.0,94423.0,0.6476022]
[1746061163804,0.21971858,94424.0,94423.0,0.65797763]
[1746061164006,0.21971858,94424.0,94423.0,0.69037763]
[1746061165892,0.21971858,94424.0,94423.0,1.05117763]
[1746061170313,0.21971858,94424.0,94423.0,0.69037763]
[1746061170811,0.00791808,94424.0,94423.0,0.69037763]
[1746061171116,0.2117942,94427.0,94426.0,0.2117954]
[1746061171314,0.2647307,94432.0,94431.0,0.211782]
[1746061171515,0.2647307,94432.0,94431.0,0.491782]
[1746061171909,0.2647707,94432.0,94431.0,0.491782]
[1746061172111,0.2647707,94432.0,94431.0,0.709582]
[1746061173518,0.27262233,94432.0,94431.0,0.709582]
[1746061176617,4e-05,94432.0,94431.0,0.709582]
[1746061176805,0.01060165,94438.0,94432.0,0.0529452]
[1746061177119,0.01060165,94438.0,94435.0,0.5725752]
[1746061177319,0.01385743,94436.0,94435.0,0.8025752]
[1746061178214,0.01385743,94436.0,94435.0,0.9245752]
[1746061179319,0.01385743,94436.0,94435.0,0.8025752]
[1746061180216,0.01385743,94436.0,94435.0,0.9245752]
[1746061180720,0.01381743,94436.0,94435.0,0.9245752]
[1746061180917,0.01385743,94436.0,94435.0,0.9245752]
[1746061186810,0.22306513,94444.0,94439.0,0.2117663]
[1746061186811,0.1079788,94440.0,94439.0,0.2117663]
[1746061187119,0.1079788,94440.0,94439.0,0.5375663]
[1746061187321,0.1080188,94440.0,94439.0,0.5375663]
[1746061188217,0.1080188,94440.0,94439.0,0.6595663]
[1746061189516,0.1080188,94440.0,94439.0,0.66735803]
[1746061190123,4e-05,94440.0,94439.0,0.66735803]
[1746061195227,4e-05,94440.0,94439.0,0.54535803]
[1746061197226,4e-05,94440.0,94439.0,0.66735803]
[1746061208336,0.03254,94440.0,94439.0,0.54535803]
[1746061215153,0.04200883,94444.0,94443.0,0.2117573]
[1746061215336,0.04200883,94444.0,94443.0,0.8025573]
[1746061215725,0.04200883,94444.0,94443.0,0.8666573]
[1746061215925,0.01130883,94444.0,94443.0,0.8666573]
[1746061228131,0.01130883,94444.0,94443.0,0.8966573]
[1746061231740,0.01130883,94444.0,94443.0,0.8666573]
[1746061239150,0.01130883,94444.0,94443.0,0.9886573]
[1746061240247,0.01130883,94444.0,94443.0,0.8666573]
[1746061244245,0.01130883,94444.0,94443.0,0.9886573]
[1746061247250,0.01130883,94444.0,94443.0,0.6278573]
[1746061247454,0.01130883,94444.0,94443.0,0.9886573]
[1746061249960,0.22306393,94444.0,94443.0,0.7769]
[1746061250141,0.26416393,94444.0,94443.0,0.4734573]
[1746061251341,0.25466393,94444.0,94443.0,0.4734573]
[1746061251937,0.25470393,94444.0,94443.0,0.4734573]
[1746061252942,0.26420393,94444.0,94443.0,0.4734573]
[1746061257248,0.25470393,94444.0,94443.0,0.4734573]
[1746061258754,0.01134883,94444.0,94443.0,0.4734573]
[1746061258961,0.01134883,94444.0,94443.0,0.5050573]
[1746061259151,0.01130883,94444.0,94443.0,0.6270573]
[1746061259348,0.01134883,94444.0,94443.0,0.6270573]
[1746061262245,1e-08,94449.0,94443.0,0.4153]
[1746061262448,1e-08,94449.0,94448.0,0.5725461]
[1746061262653,1e-08,94449.0,94448.0,0.8225461]
[1746061262951,4.001e-05,94449.0,94448.0,0.8225461]
[1746061263256,4.001e-05,94449.0,94448.0,0.9445461]
[1746061263446,4.001e-05,94449.0,94448.0,1.0099461]
[1746061265745,0.22365999,94455.0,94451.0,0.2117394]
[1746061265952,0.22365999,94455.0,94451.0,0.4617394]
[1746061266261,0.01192959,94455.0,94451.0,0.4617394]
[1746061266651,0.01192959,94455.0,94451.0,0.5252394]
[1746061268151,0.01192959,94455.0,94451.0,0.8860394]
[1746061269246,0.01192959,94455.0,94451.0,1.0080394]
[1746061270159,0.01192959,94455.0,94451.0,0.8860394]
[1746061271265,0.22366059,94455.0,94451.0,0.8860394]
[1746061278071,0.01192959,94455.0,94451.0,0.8860394]
[1746061278575,0.22366089,94455.0,94451.0,0.8860394]
[1746061280261,0.01192959,94455.0,94451.0,0.8860394]
[1746061280465,0.22366089,94455.0,94451.0,0.8860394]
[1746061281470,0.01192959,94455.0,94451.0,0.8860394]
[1746061281964,0.22366009,94455.0,94451.0,0.8860394]
[1746061282869,0.2117328,94454.0,94451.0,0.8860394]
[1746061285057,0.01192959,94455.0,94451.0,1.0080394]